bitfinex-derivatives/quotes_ETHF0:USTF0_20251126
["timestamp","ask_amount","ask_price","bid_price","bid_amount"]
[1764118839689,0.91293033,2953.9,2953.2,1.21815581]
[1764118839994,1.36463033,2953.9,2953.8,0.4901]
[1764118840391,0.4517,2953.9,2953.8,0.49448046]
[1764118840593,0.16935,2953.8,2953.0,0.2869]
[1764118840795,0.91800828,2953.7,2953.0,0.2869]
[1764118841501,0.00507795,2953.7,2953.0,0.2869]
[1764118841700,0.00507795,2953.7,2953.0,0.29010791]
[1764118845401,0.00507795,2953.7,2953.6,0.4638]
[1764118845802,0.45507795,2953.7,2953.6,0.4638]
[1764118846505,0.00507795,2953.7,2953.6,0.4638]
[1764118847903,0.45,2953.6,2953.0,0.29010791]
[1764118848802,0.45,2953.1,2953.0,0.75390791]
[1764118849007,0.45333058,2953.1,2953.0,0.75540791]
[1764118849898,0.00333058,2953.1,2953.0,0.75540791]
[1764118852106,3.058e-05,2953.1,2953.0,0.75540791]
[1764118853511,0.45003058,2953.1,2953.0,0.75540791]
[1764118854808,0.45003058,2953.1,2953.0,0.46700791]
[1764118855107,0.45003058,2953.1,2953.0,0.00320791]
[1764118855312,0.45,2952.6,2952.0,0.2869]
[1764118855513,0.45,2952.6,2952.5,0.4638]
[1764118855707,0.1694,2952.9,2952.8,0.4638]
[1764118856111,0.6194,2952.9,2952.8,0.4638]
[1764118856314,0.1694,2952.9,2952.8,0.4671691]
[1764118856515,0.6194,2952.9,2952.8,0.4671691]
[1764118857313,0.6194,2952.9,2952.8,0.0033691]
[1764118857714,0.6194,2952.9,2952.8,0.4671691]
[1764118858216,0.1694,2952.9,2952.8,0.4671691]
[1764118858618,0.6194,2952.9,2952.8,0.4671691]
[1764118859615,0.1694,2952.9,2952.8,0.4671691]
[1764118859913,0.6194,2952.9,2952.8,0.4671691]
[1764118860616,0.45,2952.9,2952.8,0.0033691]
[1764118860817,0.6194,2952.9,2952.8,0.0033691]
[1764118861312,0.6194,2952.9,2952.0,0.2869]
[1764118861816,0.16941,2952.7,2952.0,0.2869]
[1764118862414,0.16941,2952.7,2952.0,0.29059942]
[1764118866328,0.2869,2952.5,2952.0,0.29059942]
[1764118871236,0.7679,2952.5,2952.0,0.29059942]
[1764118871833,0.91293033,2952.8,2952.7,0.4603]
[1764118872132,1.40106091,2953.1,2953.0,0.7485]
[1764118872322,0.48813058,2953.1,2953.0,0.7485]
[1764118872634,0.48813058,2953.1,2953.0,0.4603]
[1764118874135,0.48813058,2953.1,2953.0,0.7485]
[1764118875333,0.48813058,2953.1,2952.5,0.2882]
[1764118875637,3.058e-05,2953.1,2953.0,0.2882]
[1764118877231,0.48813058,2953.1,2953.0,0.7485]
[1764118878238,0.48813058,2953.1,2953.0,0.4603]
[1764118878534,0.48813058,2953.1,2953.0,0.7485]
[1764118878724,3.058e-05,2953.1,2953.0,0.2882]
[1764118879430,0.48813058,2953.1,2952.5,0.2882]
[1764118879735,0.48813058,2953.1,2953.0,0.4603]
[1764118879934,0.48813058,2953.1,2953.0,0.7485]
[1764118881040,0.48813058,2953.1,2953.0,0.4603]
[1764118881339,3.058e-05,2953.1,2953.0,0.2882]
[1764118881535,0.48813058,2953.1,2953.0,0.2882]
[1764118881838,0.48813058,2953.1,2953.0,0.7485]
[1764118882838,0.7834,2952.5,2952.4,1.21815581]
[1764118883141,0.16943,2952.4,2952.3,0.4603]
[1764118883839,0.91082143,2952.6,2952.5,0.7485]
[1764118884435,1.39892143,2952.7,2952.6,0.4603]
[1764118885336,0.4881,2952.6,2952.5,0.7485]
[1764118885743,0.91082143,2952.7,2952.6,0.4603]
[1764118886144,0.4881,2952.6,2952.5,0.7485]
[1764118886643,1.08023143,2952.7,2952.6,0.4603]
[1764118887643,0.16941,2952.7,2952.6,0.4603]
[1764118887943,0.91085201,2953.1,2953.0,0.7485]
[1764118888148,3.058e-05,2953.1,2953.0,0.2882]
[1764118889146,0.2953,2953.0,2952.5,0.2882]
[1764118889334,0.91085201,2953.1,2952.9,0.4603]
[1764118889649,3.058e-05,2953.1,2953.0,0.2882]
[1764118891442,0.48813058,2953.1,2952.5,0.2882]
[1764118891643,0.4881,2952.6,2952.5,1.21815581]
[1764118891848,0.4881,2952.5,2952.4,0.4603]
[1764118893041,0.16941,2952.7,2952.6,0.4603]
[1764118893545,0.65751,2952.7,2952.6,0.4603]
[1764118895246,0.4881,2952.6,2952.0,0.29059942]
[1764118895449,0.4881,2952.6,2952.5,0.4603]
[1764118896448,0.16941,2952.7,2952.6,0.4603]
[1764118896846,0.65751,2952.7,2952.6,0.4603]
[1764118899052,0.16941,2952.7,2952.6,0.4603]
[1764118900546,0.91085201,2953.1,2953.0,0.7485]
[1764118900856,0.65752058,2953.1,2952.5,0.2882]
[1764118901752,1.56834201,2953.1,2952.5,0.2882]
[1764118902854,1.56834201,2953.1,2953.0,0.4603]
[1764118903047,0.65752058,2953.1,2953.0,0.7538]
[1764118903650,0.16942058,2953.1,2953.0,0.7538]
[1764118904147,0.65622058,2953.1,2953.0,0.7538]
[1764118905348,3.058e-05,2953.1,2953.0,0.2935]
[1764118905743,0.4868,2952.6,2952.5,1.66745581]
[1764118905949,0.4868,2952.6,2952.5,0.7428]
[1764118906248,0.4868,2952.6,2952.5,0.4493]
[1764118907853,0.4868,2952.6,2952.5,0.7428]
[1764118908158,0.4868,2952.6,2952.5,0.4493]
[1764118909760,0.4868,2952.8,2952.5,0.2935]
[1764118909958,1.39762143,2953.0,2952.9,0.4493]
[1764118911462,0.4868,2953.0,2952.9,0.4493]
[1764118912160,1.39762143,2953.0,2952.9,0.4493]
[1764118913060,1.08024201,2953.1,2953.0,0.7428]
[1764118913262,3.058e-05,2953.1,2953.0,0.2935]
[1764118914263,0.48683058,2953.1,2953.0,0.7428]
[1764118915356,0.4868,2952.6,2952.4,1.21815581]
[1764118915558,0.2845,2953.0,2952.1,3.02336812]
[1764118915559,0.4868,2952.3,2952.1,3.02336812]
[1764118915763,0.4868,2952.2,2952.1,0.4493]
[1764118916965,0.2845,2952.5,2952.1,0.4493]
[1764118916966,0.4868,2952.5,2952.4,0.4493]
[1764118917166,0.4868,2952.5,2952.1,0.81829905]
[1764118917361,0.90965009,2952.4,2952.1,0.81829905]
[1764118917563,1.39645009,2952.4,2952.3,0.4493]
[1764118917764,1.39645009,2952.5,2952.4,0.4493]
[1764118918463,1.68095009,2952.5,2952.1,0.81829905]
[1764118919462,0.4868,2952.2,2952.1,1.26759905]
[1764118920369,1.39645009,2952.5,2952.4,0.4493]
[1764118921262,0.4868,2952.5,2952.4,0.4493]
[1764118922659,0.4481,2952.1,2952.0,0.75969942]
[1764118922864,0.4481,2952.1,2952.0,0.49189942]
[1764118923470,0.4481,2952.4,2952.3,0.4882]
[1764118923664,0.4481,2952.4,2952.0,0.27149942]
[1764118924069,0.4481,2952.4,2952.3,0.4882]
[1764118924270,0.16942,2952.5,2952.4,0.4882]
[1764118924472,0.16942,2952.5,2952.4,1.30649905]
[1764118924970,0.90965009,2952.9,2952.5,0.2678]
[1764118925172,1.35775009,2952.9,2952.8,0.4882]
[1764118925875,1.52717067,2953.1,2953.0,0.756]
[1764118926071,1.52717067,2953.1,2952.5,1.08609905]
[1764118926279,0.90965009,2953.0,2952.5,1.08609905]
[1764118926475,0.4481,2952.6,2952.5,0.756]
[1764118926676,1.35775009,2953.0,2952.9,0.4882]
[1764118926880,3.058e-05,2953.1,2953.0,0.2678]
[1764118927370,3.058e-05,2953.1,2953.0,1.08609905]
[1764118928175,3.058e-05,2953.1,2953.0,0.2678]
[1764118930082,3.058e-05,2953.1,2953.0,1.08609905]
[1764118930280,3.058e-05,2953.1,2953.0,0.2678]
[1764118930783,0.44813058,2953.1,2953.0,0.756]
[1764118932376,0.44813058,2953.1,2953.0,0.4882]
[1764118933786,3.058e-05,2953.1,2953.0,0.7711]
[1764118934185,0.49203058,2953.1,2953.0,0.7711]
[1764118934885,0.49203058,2953.1,2953.0,0.4882]
[1764118935086,0.49203058,2953.1,2952.6,0.81829905]
[1764118935388,0.49203058,2953.1,2953.0,0.465]
[1764118935681,0.49203058,2953.1,2953.0,0.7479]
[1764118936673,3.058e-05,2953.1,2952.7,0.81829905]
[1764118936878,0.492,2952.8,2952.7,0.465]
[1764118937875,3.058e-05,2953.1,2952.7,0.465]
[1764118938079,3.058e-05,2953.1,2952.7,1.28329905]
[1764118938885,3.058e-05,2953.1,2953.0,0.2829]
[1764118940277,0.49203058,2953.1,2952.9,0.81829905]
[1764118940484,0.49203058,2953.1,2952.9,0.465]
[1764118940485,0.492,2953.0,2952.9,0.465]
[1764118940878,3.058e-05,2953.1,2953.0,0.2829]
[1764118941082,0.49203058,2953.1,2953.0,1.56619905]
[1764118942592,3.058e-05,2953.1,2953.0,1.10119905]
[1764118943177,0.49203058,2953.1,2952.5,1.50105581]
[1764118943376,0.492,2952.9,2952.8,0.81829905]
[1764118943586,0.492,2952.9,2952.8,0.465]
[1764118945590,0.492,2952.6,2952.5,0.7479]
[1764118945791,0.492,2952.6,2952.2,0.81829905]
[1764118946377,0.492,2952.6,2952.5,0.7479]
[1764118946791,0.6614,2952.9,2952.8,0.465]
[1764118950498,0.90968067,2953.1,2952.8,0.465]
[1764118950693,0.90968067,2953.1,2953.0,0.2829]
[1764118950694,3.058e-05,2953.1,2953.0,0.2829]
[1764118953601,3.058e-05,2953.1,2953.0,1.50105581]
[1764118954395,1.40165009,2953.6,2953.0,1.50105581]
[1764118954589,1.40165009,2953.6,2953.2,0.81829905]
[1764118955300,1.40546214,2953.6,2953.2,0.81829905]
[1764118955890,1.40546214,2953.6,2953.5,0.465]
[1764118958709,0.00381205,2953.6,2953.5,0.7479]
[1764118959812,0.00507795,2953.7,2953.6,0.465]
[1764118960112,1.40296401,2954.4,2954.3,0.465]
[1764118960313,0.492,2954.4,2954.3,0.465]
[1764118960907,0.49527335,2954.4,2954.3,0.4690833]
[1764118961506,0.49527335,2954.4,2954.3,1.28738235]
[1764118961712,0.00327335,2954.4,2954.3,1.28738235]
[1764118961915,0.46927335,2954.4,2954.3,0.4690833]
[1764118962705,0.46927335,2954.4,2954.3,0.0040833]
[1764118963110,0.63858335,2954.4,2954.3,0.0040833]
[1764118963312,1.54954736,2954.4,2954.3,0.0040833]
[1764118963623,0.466,2953.6,2953.5,1.57329905]
[1764118963909,0.2828,2954.0,2953.5,1.57329905]
[1764118964310,0.466,2953.6,2953.5,1.57329905]
[1764118964510,0.466,2953.6,2953.5,1.57589846]
[1764118965017,0.2828,2954.0,2953.5,1.57589846]
[1764118965517,0.16933,2954.1,2954.0,0.7587]
[1764118965713,0.63533,2954.1,2953.7,0.81829905]
[1764118965919,0.466,2953.8,2953.7,1.29039905]
[1764118966317,0.466,2953.8,2953.7,0.4721]
[1764118968314,0.466,2953.6,2953.5,0.47469941]
[1764118968519,0.466,2953.6,2953.5,0.76129941]
[1764118969416,0.63534,2954.0,2953.9,0.4721]
[1764118974928,0.16934,2954.0,2953.9,0.4721]
[1764118976028,0.63534,2954.0,2953.9,0.4721]
[1764118976923,0.91414,2954.0,2953.5,1.1066063]
[1764118977127,0.466,2953.6,2953.5,0.76129941]
[1764118977724,0.16934,2954.0,2953.5,0.76129941]
[1764118978026,0.63534,2954.0,2953.9,0.4721]
[1764118978428,0.91414,2954.0,2953.5,0.28919941]
[1764118980525,0.63536,2953.6,2953.5,0.00259941]
[1764118980832,0.63537,2953.4,2953.3,0.00507795]
[1764118981218,1.38243644,2953.4,2953.3,0.46147795]
[1764118981418,0.16937,2953.4,2953.3,0.46147795]
[1764118981826,0.90982433,2953.6,2953.5,0.725]
[1764118982128,1.82013446,2953.9,2953.6,0.4564]
[1764118982129,1.36592433,2953.7,2953.6,0.4564]
[1764118982625,0.4561,2953.7,2953.6,0.4564]
[1764118983017,1.36592433,2953.7,2953.6,0.4564]
[1764118983216,0.4561,2953.6,2953.5,0.2686]
[1764118983423,0.4561,2953.4,2953.3,0.46391602]
[1764118983830,0.4561,2953.4,2953.3,0.00751602]
[1764118984221,0.62547,2953.4,2953.3,0.00751602]
[1764118984523,1.53529433,2953.4,2953.3,0.00751602]
[1764118985431,1.53529433,2953.4,2953.3,0.46391602]
[1764118985831,0.62547,2953.4,2953.3,0.46391602]
[1764118986730,0.62547,2953.4,2953.3,0.00751602]
[1764118987125,1.53529433,2953.4,2953.3,0.00751602]
[1764118989533,1.53529433,2953.4,2953.3,0.46391602]
[1764118989731,0.62547,2953.4,2953.3,0.00751602]
[1764118991035,0.62547,2953.4,2953.3,0.46391602]
[1764118991535,0.62547,2953.4,2953.3,0.00751602]
[1764118995140,1.53529433,2953.4,2953.3,0.00751602]
[1764118995942,0.62547,2953.4,2953.3,0.00751602]
[1764118996439,2.35270122,2953.4,2953.3,0.00751602]
[1764118996632,0.4793,2952.6,2952.5,0.7537]
[1764118997338,0.4793,2952.6,2952.2,1.21667602]
[1764118997542,0.2678,2953.0,2952.2,0.4708]
[1764118997543,0.4793,2952.3,2952.2,0.4708]
[1764118997736,0.48282196,2952.3,2952.2,0.4735673]
[1764118998340,0.48282196,2952.3,2952.2,0.0027673]
[1764119000540,0.65225196,2952.3,2952.2,0.0027673]
[1764119000744,0.65225196,2952.3,2952.2,0.4735673]
[1764119003340,0.65225196,2952.3,2952.2,0.0027673]
[1764119007240,0.65225196,2952.3,2952.2,0.4735673]
[1764119007444,0.65225196,2952.3,2952.2,0.0027673]
[1764119008947,0.65225196,2952.3,2952.2,0.4735673]
[1764119009148,0.65225196,2952.3,2952.2,0.0027673]
[1764119014056,0.65225196,2952.3,2952.2,0.4735673]
[1764119018552,0.65225196,2952.3,2952.2,0.0027673]
[1764119025072,0.65225196,2952.3,2952.2,0.4629673]
[1764119025371,0.65225196,2952.3,2952.2,0.0027673]
[1764119026067,1.56134568,2952.3,2952.2,0.0027673]
[1764119026863,1.47062828,2952.3,2951.7,1.21667602]
[1764119027076,0.4537,2951.7,2951.6,1.21667602]
[1764119027279,0.90989891,2952.1,2951.5,3.35238863]
[1764119027473,0.4537,2951.8,2951.7,1.21931397]
[1764119027776,0.4537,2951.8,2951.7,1.67951397]
[1764119027976,0.4537,2951.8,2951.7,1.68346701]
[1764119029577,0.90989891,2952.1,2952.0,0.7537]
[1764119029984,1.36359891,2952.1,2952.0,0.7537]
[1764119030675,0.90989891,2952.1,2952.0,0.7537]
[1764119030872,0.90989891,2952.2,2952.1,0.4602]
[1764119033171,0.91342087,2952.3,2952.2,0.4602]
[1764119039682,1.36712087,2952.3,2952.2,0.4602]
[1764119042882,0.45722196,2952.3,2952.2,0.4602]
[1764119043080,0.4537,2952.2,2952.0,2.9135]
[1764119043288,0.4919,2952.1,2952.0,3.3715]
[1764119043589,0.91342087,2952.3,2952.2,0.458]
[1764119043781,1.40532087,2952.3,2952.2,0.458]
[1764119044174,0.91342087,2952.3,2952.2,1.27637632]
[1764119044378,1.40532087,2952.3,2952.2,1.27637632]
[1764119044689,0.4919,2952.1,2952.0,0.7515]
[1764119045481,0.91342087,2952.3,2952.0,0.7515]
[1764119045788,1.40532087,2952.3,2952.2,0.458]
[1764119046391,0.4919,2952.1,2952.0,0.7515]
[1764119048185,0.00352196,2952.3,2952.2,0.458]
[1764119048381,0.49542196,2952.3,2952.2,0.458]
[1764119050392,0.4919,2952.1,2952.0,0.2935]
[1764119050698,0.4919,2952.1,2952.0,0.7515]
[1764119051484,0.4919,2952.1,2951.9,1.21931397]
[1764119051787,0.4761,2951.9,2951.8,1.69831397]
[1764119051981,0.4761,2951.9,2951.7,0.00395304]
[1764119051982,0.4761,2951.8,2951.7,1.70226701]
[1764119052176,0.4761,2951.8,2951.7,0.00395304]
[1764119052592,1.55493104,2952.0,2951.9,0.479]
[1764119053088,0.64555,2952.0,2951.9,0.479]
[1764119055583,0.4761,2951.8,2951.7,0.48295304]
[1764119057491,0.64555,2952.0,2951.9,0.479]
[1764119058388,0.64555,2952.0,2951.7,0.00395304]
[1764119058389,0.4761,2951.8,2951.7,0.00395304]
[1764119065091,0.4761,2951.8,2951.7,0.46305304]
[1764119066689,0.4761,2951.8,2951.7,0.00395304]
[1764119068496,0.64556,2951.8,2951.7,0.00395304]
[1764119074394,0.16946,2951.8,2951.7,1.28142936]
[1764119074793,0.64686,2951.8,2951.7,0.00395304]
[1764119074998,0.64686,2951.8,2951.7,1e-08]
[1764119082207,0.64686,2951.8,2951.7,0.45690001]
[1764119082601,0.16946,2951.8,2951.7,1e-08]
[1764119086707,1.07683707,2951.8,2951.7,1e-08]
[1764119086909,0.64136,2951.8,2951.7,1e-08]
[1764119087101,3.27987078,2951.8,2951.7,1e-08]
[1764119087410,10.05521291,2951.8,2951.7,1e-08]
[1764119087910,14.12521291,2951.8,2951.7,1e-08]
[1764119088210,10.05521291,2951.8,2951.7,1e-08]
[1764119088414,15.41521291,2951.8,2951.7,1e-08]
[1764119088603,1.42184128,2951.8,2951.7,1e-08]
[1764119088802,2.32884565,2951.8,2951.7,1e-08]
[1764119090506,1.42184128,2951.8,2951.7,1e-08]
[1764119091510,2.32884565,2951.8,2951.7,1e-08]
[1764119101215,0.64136,2951.8,2951.7,1e-08]
[1764119102209,2.32849751,2951.8,2951.7,1e-08]
[1764119102408,2.24040922,2951.8,2951.7,1e-08]
[1764119103818,3.4498089,2951.8,2951.7,1e-08]
[1764119104616,2.24040922,2951.8,2951.7,1e-08]
[1764119104918,3.4498089,2951.8,2951.7,1e-08]
[1764119105809,8.8098089,2951.8,2951.7,1e-08]
[1764119106915,0.4889,2950.9,2950.8,1.82897301]
[1764119107108,0.4889,2950.8,2950.7,2.09428848]
[1764119107912,0.4889,2950.8,2950.7,1.82897301]
[1764119108218,0.4889,2950.8,2950.7,1.83316074]
[1764119108612,0.16949,2951.3,2950.7,2.27886074]
[1764119108916,0.4889,2950.8,2950.7,1.83316074]
[1764119109817,0.4889,2950.8,2950.7,0.00418773]
[1764119110113,0.4889,2950.2,2950.1,2.43863068]
[1764119110319,0.4889,2950.1,2950.0,3.15573068]
[1764119110514,0.4889,2950.1,2950.0,0.7171]
[1764119110714,0.4889,2950.1,2950.0,3.15491515]
[1764119110913,0.49248051,2950.1,2950.0,0.7211405]
[1764119112015,0.49248051,2950.1,2950.0,0.0040405]
[1764119112812,1.64150345,2950.1,2949.5,2.43652985]
[1764119113017,1.64150345,2950.1,2948.5,0.2714]
[1764119113018,0.81896147,2949.6,2948.5,0.2714]
[1764119113213,0.90549279,2949.4,2949.0,0.2784]
[1764119113418,0.81896147,2949.6,2949.0,0.2784]
[1764119113613,1.37410666,2949.8,2949.6,0.446]
[1764119113916,0.91828982,2949.7,2949.6,0.4502882]
[1764119114317,0.90703216,2950.1,2950.0,0.7244]
[1764119114522,0.92101577,2950.1,2950.0,0.7244]
[1764119114725,0.92101577,2950.1,2950.0,0.2784]
[1764119114918,1.73997724,2950.1,2949.6,0.0042882]
[1764119115118,0.90246947,2949.7,2949.6,0.0042882]
[1764119115327,0.91743526,2949.7,2949.6,0.0042882]
[1764119115524,0.91743526,2949.7,2949.0,0.2784]
[1764119115525,0.16961,2949.3,2949.0,0.2784]
[1764119115723,0.90164655,2949.6,2949.5,0.7244]
[1764119115916,0.90164655,2949.6,2949.5,0.2784]
[1764119116115,1.81801921,2949.6,2949.5,0.2784]
[1764119116315,1.81801921,2949.6,2949.0,0.2784]
[1764119116316,0.1696,2949.4,2949.0,0.2784]
[1764119116529,0.1696,2949.4,2949.0,0.28146869]
[1764119116530,1.81659786,2949.3,2949.0,0.28146869]
[1764119116720,0.91637266,2949.2,2949.0,0.28146869]
[1764119116922,0.91637266,2949.1,2949.0,0.28146869]
[1764119117626,1.08599266,2949.1,2949.0,0.00306869]
[1764119118422,0.16967,2948.3,2948.0,0.2784]
[1764119118625,0.98864147,2948.1,2947.5,0.2784]
[1764119119019,0.81896147,2947.8,2947.5,0.2784]
[1764119119223,0.98866147,2947.8,2947.5,0.2784]
[1764119119430,0.99223682,2947.8,2947.5,0.28182142]
[1764119120023,0.99223682,2947.8,2947.5,0.00342142]
[1764119120227,0.17327535,2947.8,2947.5,0.00342142]
[1764119120529,0.98866147,2947.6,2947.5,0.00342142]
[1764119120723,1.89616705,2947.6,2947.5,0.00342142]
[1764119121119,1.72646705,2947.6,2946.5,0.2784]
[1764119121320,0.16975,2946.8,2946.7,0.446]
[1764119121628,0.89647104,2947.4,2947.0,0.2784]
[1764119121825,0.16974,2947.0,2946.5,0.2784]
[1764119122226,0.16974,2947.0,2946.5,0.28229282]
[1764119122725,0.16974,2947.0,2946.9,0.446]
[1764119124729,0.16974,2947.0,2946.5,0.28229282]
[1764119125732,0.16974,2947.0,2946.9,0.446]
[1764119125932,0.16974,2947.0,2946.5,0.28229282]
[1764119126933,0.16975,2946.9,2946.5,0.28229282]
[1764119127331,0.89647104,2947.6,2947.5,0.2784]
[1764119127531,1.06692463,2947.6,2947.5,0.2784]
[1764119127735,2.03257535,2947.8,2947.7,0.446]
[1764119127930,0.00357535,2947.8,2947.7,0.446]
[1764119129232,0.16968,2948.1,2948.0,0.7244]
[1764119129637,0.0050868,2948.4,2948.3,0.446]
[1764119129832,0.90350774,2948.4,2948.3,0.446]
[1764119130024,0.0050868,2948.4,2948.3,0.446]
[1764119130228,0.0088417,2948.4,2948.3,0.446]
[1764119130529,0.1785017,2948.4,2948.3,0.446]
[1764119131331,0.0088417,2948.4,2948.3,0.446]
[1764119132235,1.06463,2948.9,2948.8,0.446]
[1764119132437,1.96453038,2948.9,2948.8,0.446]
[1764119132636,0.89990038,2948.9,2948.8,0.446]
[1764119132841,0.16959,2949.6,2949.5,0.7244]
[1764119133030,0.16959,2949.6,2949.5,0.2784]
[1764119133229,0.17214648,2949.6,2949.5,0.28232576]
[1764119135035,1.06861752,2949.6,2949.5,0.00392576]
[1764119135233,9.343217,2949.6,2949.5,0.00392576]
[1764119135437,4.97622673,2949.6,2949.5,0.28232576]
[1764119136041,1.56922673,2949.6,2949.5,0.28232576]
[1764119136243,6.93248838,2949.6,2949.5,0.72832576]
[1764119136737,1.94748838,2949.6,2949.5,0.72832576]
[1764119137336,0.17214648,2949.6,2949.5,0.72832576]
[1764119139445,1.36001367,2949.6,2949.5,0.72832576]
[1764119139743,1.95150415,2949.6,2949.5,0.28232576]
[1764119139942,1.95150415,2949.6,2948.5,0.2784]
[1764119139943,9.8184361,2949.6,2948.5,0.2784]
[1764119140245,0.16965,2948.6,2948.5,0.2784]
[1764119140442,1.95257511,2948.6,2948.5,0.2784]
[1764119140640,0.16965,2948.6,2948.5,0.2784]
[1764119140941,0.16965,2948.6,2948.5,0.28240362]
[1764119141239,1.95506165,2948.6,2948.5,0.28240362]
[1764119141443,0.16965,2948.6,2948.5,0.72840362]
[1764119142336,0.16965,2948.6,2948.5,0.28240362]
[1764119143042,2.55490034,2948.6,2948.5,0.74510362]
[1764119143246,0.16965,2948.6,2948.5,0.74510362]
[1764119143939,0.16965,2948.6,2948.5,0.28240362]
[1764119144339,0.16966,2948.4,2948.3,0.4627]
[1764119144743,1.07454278,2948.4,2948.3,0.4627]
[1764119145341,3.46206372,2948.4,2948.3,0.46568217]
[1764119146246,3.46206372,2948.4,2948.3,0.00298217]
[1764119146452,3.46206372,2948.4,2948.3,0.46568217]
[1764119146846,1.07454278,2948.4,2948.3,0.46568217]
[1764119148543,2.86678505,2948.4,2948.3,0.46568217]
[1764119148949,1.07454278,2948.4,2948.3,0.46568217]
[1764119149150,4.278e-05,2948.4,2948.3,0.46568217]
[1764119149448,2.78e-06,2948.4,2948.3,0.46568217]
[1764119149650,2.38752094,2948.8,2948.7,0.4627]
[1764119149851,0.16963,2948.9,2948.8,0.4627]
[1764119150644,1.36452477,2948.9,2948.8,0.4627]
[1764119150843,0.16963,2948.9,2948.8,0.4627]
[1764119151044,0.2762,2949.5,2949.4,0.3707]
[1764119151354,0.9014,2949.5,2948.5,0.2758]
[1764119151551,0.1696,2949.5,2949.4,0.3707]
[1764119151746,0.89905391,2949.6,2949.5,0.3707]
[1764119152047,0.16956,2950.2,2949.0,1.23073205]
[1764119152837,0.0050868,2949.9,2949.3,0.0050868]
[1764119153045,0.0050868,2949.9,2949.4,1.23073205]
[1764119153252,0.00350622,2950.2,2949.4,7.23073205]
[1764119153451,0.00350622,2950.2,2949.4,1.23073205]
[1764119154158,0.0050868,2950.1,2949.4,1.23073205]
[1764119154448,0.00350622,2950.2,2949.4,1.23073205]
[1764119155248,0.0050868,2950.1,2949.4,1.23073205]
[1764119157049,0.0050868,2950.1,2949.5,2.62]
[1764119158858,0.2762,2950.0,2949.5,2.62]
[1764119159557,0.0050868,2950.1,2949.5,2.62]
[1764119159952,0.0050868,2950.1,2949.8,1.23073205]
[1764119160157,0.2762,2951.0,2949.9,2.62]
[1764119160354,0.2762,2951.0,2950.0,2.62]
[1764119161052,0.0050868,2950.8,2950.2,1.23073205]
[1764119161253,0.0050868,2950.8,2950.2,3.85073205]
[1764119161462,0.0050868,2950.8,2949.3,0.0050868]
[1764119161463,0.2762,2951.5,2950.6,1.23073205]
[1764119161658,0.2762,2951.5,2949.9,2.62]
[1764119161958,0.86395967,2951.4,2950.3,1.23073205]
[1764119162258,0.86395967,2951.3,2949.9,1.23073205]
[1764119162455,0.2763,2951.0,2949.9,1.23370225]
[1764119163053,0.0050868,2951.1,2950.3,1.23073205]
[1764119163248,0.2763,2951.0,2950.1,0.16956]
[1764119163450,0.2763,2951.0,2949.9,1.23370225]
[1764119163656,0.0050868,2951.1,2950.3,1.23073205]
[1764119163965,0.2763,2951.0,2950.3,1.40028205]
[1764119164158,0.0050868,2951.1,2950.3,1.40028205]
[1764119164958,2.38752094,2952.9,2950.8,0.16952]
[1764119165155,0.096,2952.8,2951.3,1.23073205]
[1764119165558,1.23073205,2952.7,2951.3,1.23073205]
[1764119165762,1.23073205,2952.7,2951.0,1.23073205]
[1764119166172,0.00333257,2951.8,2951.2,0.0050868]
[1764119167363,0.2763,2951.5,2951.2,0.0050868]
[1764119170057,0.00333257,2951.8,2951.2,0.0050868]
[1764119170664,0.2763,2951.5,2951.2,0.0050868]
[1764119170969,0.00333257,2951.8,2951.2,0.0050868]
[1764119174969,0.2763,2951.5,2951.2,0.0050868]
[1764119176767,0.00333257,2951.8,2951.2,0.0050868]
[1764119179367,0.28013052,2952.0,2951.5,1.23073205]
[1764119180272,0.28013052,2952.0,2951.5,1.5064024]
[1764119180463,0.00393052,2952.0,2951.5,1.5064024]
[1764119180768,0.28023052,2952.0,2951.5,1.5064024]
[1764119180966,0.00393052,2952.0,2951.5,1.5064024]
[1764119182167,0.00393052,2952.0,2951.5,1.6758824]
[1764119182468,0.2762,2952.5,2951.5,1.6758824]
[1764119182669,0.86633951,2952.4,2951.5,1.6758824]
[1764119182869,0.86633951,2952.3,2951.5,1.6758824]
[1764119183071,0.86633951,2952.2,2951.9,1.23073205]
[1764119183269,0.2763,2952.0,2951.5,1.5064024]
[1764119183471,0.2763,2952.0,2951.6,1.23073205]
[1764119183870,0.00353412,2952.2,2951.6,1.23073205]
[1764119184071,0.00353412,2952.2,2952.0,1.23073205]
[1764119184271,0.00353412,2952.2,2952.0,1.23469232]
[1764119184571,0.2762,2952.5,2952.0,0.00396027]
[1764119184772,0.2762,2952.5,2952.0,1.23469232]
[1764119185362,0.27977074,2952.5,2952.0,1.23469232]
[1764119189279,0.85999628,2952.4,2952.0,1.23469232]
[1764119189473,0.27977074,2952.5,2952.0,1.23469232]
[1764119189672,0.85994663,2952.4,2952.0,1.23469232]
[1764119189875,0.27977074,2952.5,2952.0,1.23469232]
[1764119190075,0.85994081,2952.4,2952.0,1.23469232]
[1764119190273,0.27977074,2952.5,2952.0,1.23469232]
[1764119190474,0.8598591,2952.4,2952.0,1.23469232]
[1764119190775,0.27977074,2952.5,2952.0,1.23469232]
[1764119190972,0.859859,2952.4,2952.0,1.23469232]
[1764119191173,0.27977074,2952.5,2952.0,1.23469232]
[1764119191375,0.86017768,2952.4,2952.0,1.23469232]
[1764119191578,0.27977074,2952.5,2952.0,1.23469232]
[1764119191768,0.27977074,2952.5,2952.0,1.40414232]
[1764119191973,0.27977074,2952.5,2952.4,1.23073205]
[1764119192576,1.13995151,2952.5,2952.4,1.23073205]
[1764119192982,0.2763,2953.0,2952.4,1.23073205]
[1764119193276,0.2763,2953.0,2952.8,1.23073205]
[1764119193985,0.2763,2952.5,2952.4,1.23073205]
[1764119195176,0.12040515,2953.0,2952.4,1.23073205]
[1764119195488,0.2763,2953.5,2952.9,1.23073205]
[1764119195776,0.2763,2953.5,2952.9,1.23581885]
[1764119196179,0.2763,2953.5,2953.4,1.23073205]
[1764119196383,0.27895152,2953.5,2953.4,1.23073205]
[1764119196881,0.00265152,2953.5,2953.4,1.23073205]
[1764119197481,0.2763,2954.0,2953.4,1.23073205]
[1764119197678,0.2763,2954.0,2953.8,1.23073205]
[1764119198382,0.27995013,2954.0,2953.8,1.23073205]